[Event "Vugar Gashimov Memorial Blitz 2024"]
[Site "Shusha"]
[Date "2024.09.28"]
[Round "9.4"]
[White "Artemiev, Vladislav"]
[Black "Nepomniachtchi, Ian"]
[Result "0-1"]
[ECO "D53"]
[WhiteElo "2701"]
[BlackElo "2755"]
[Annotator "TA"]
[PlyCount "136"]
[EventDate "2024.09.28"]
[EventType "tourn"]
[EventCountry "AZE"]
[SourceTitle "playchess.com"]
[Source "ChessBase"]
[SourceQuality "1"]
[TimeControl "180+2"]

{[%evp 44,136,0,-37,-10,-13,314,289,306,319,322,315,311,210,193,191,203,207,207,200,194,166,196,166,166,160,171,156,156,131,131,131,131,103,137,131,122,0,110,110,122,122,106,116,139,91,126,30,30,30,30,30,63,30,38,31,85,45,45,0,84,-8,12,12,12,0,38,0,10,-4094,-2549,-4818,-2536,-4137,-1766,-4137,-4137,-4137,-4137,-4133,-4133,-4133,-2010,-4133,-1172,-29978,-29979,-29988,-29981,-29981,-29982,-29986,-29985,-29985,-29986]} 1. d4 {[%emt 0:00:01]} Nf6 {[%emt 0:00:01]} 2. c4 {[%emt 0:00:01]} e6 {[%emt 0:00:01]} 3. Nf3 {[%emt 0:00:02]} d5 {[%emt 0:00:01]} 4. Nc3 {[%emt 0:00:01]} Be7 {[%emt 0:00:00]} 5. Bg5 {[%emt 0:00:03]} h6 {[%emt 0:00:02]} 6. Bh4 {[%emt 0:00:01]} dxc4 {[%emt 0:00:03]} 7. e3 {[%emt 0:00:02] D53: Queen's Gambit Declined: 4 Bg5 Be7: Early deviations.} c5 {[%emt 0:00:00]} 8. dxc5 {[%emt 0:00:08]} Qxd1+ {[%emt 0:00:06]} 9. Rxd1 {[%emt 0:00:01]} Nbd7 {[%emt 0:00:01]} 10. Bxc4 {[%emt 0:00:07]} Nxc5 {[%emt 0:00:03]} 11. Ne5 {[%emt 0:00:07]} Nfd7 {[%emt 0:00:07]} 12. Bg3 {[%emt 0:00:01]} a6 $146 {[%emt 0:00:18]} ({Predecessor:} 12... Bf6 13. Bb5 a6 14. Bxd7+ Nxd7 15. Nc4 b5 16. Nd6+ Ke7 17. O-O Bxc3 18. bxc3 f6 {½-½ Kalesis,N (2435)-Hristodoulou,P (2329) GRE-chT 49th 2022 (4.4)}) 13. Be2 {[%emt 0:00:13]} Nxe5 {[%emt 0:00:09]} 14. Bxe5 {[%emt 0:00:01]} f6 {[%emt 0:00:00]} 15. Bh5+ {[%emt 0:00:15]} Kf8 {[%emt 0:00:01]} 16. Bc7 {[%emt 0:00:58]} b5 {[%emt 0:00:41]} 17. b4 {[%emt 0:00:40]} Nd7 {[%emt 0:00:05]} 18. a3 {[%emt 0:00:01]} Ra7 {[%emt 0:00:04]} 19. Bg3 {[%emt 0:00:04]} g5 {[%emt 0:00:11]} 20. O-O {[%emt 0:00:12]} Kg7 {[%emt 0:00:01]} 21. Ne4 {[%emt 0:00:17]} Nb6 {[%emt 0:00:26]} 22. Nd6 {[%emt 0:00:14]} Rd8 {[%emt 0:00:23]} 23. Bf3 {[%emt 0:00:06]} Bxd6 {[%emt 0:00:05]} 24. Bxd6 {[%emt 0:00:09]} Rad7 $2 {[%emt 0:00:01][%mdl 8192]} (24... Nc4 $11 {and Black is okay.} 25. Bc5 Rad7) 25. Bc7 $1 $18 {[%emt 0:00:02]} Rxd1 {[%emt 0:00:24]} 26. Bxd1 {[%emt 0:00:01]} Rxd1 {[%emt 0:00:05]} 27. Rxd1 {[%emt 0:00:01]} Nc4 {[%emt 0:00:01]} 28. Ba5 {[%emt 0:00:04]} Kg6 {[%emt 0:00:01]} 29. Rd8 {[%emt 0:00:02]} Bb7 {[%emt 0:00:00]} 30. Rd7 {[%emt 0:00:01]} Bd5 {[%emt 0:00:05]} 31. Ra7 {[%emt 0:00:01]} Nxa3 {[%emt 0:00:01]} 32. Rxa6 {[%emt 0:00:01]} Nc2 {[%emt 0:00:15]} 33. Rb6 {[%emt 0:00:01]} Bc4 {[%emt 0:00:00]} 34. Rd6 {[%emt 0:00:01]} g4 {[%emt 0:00:04]} 35. Rd2 {[%emt 0:00:01]} Ne1 {[%emt 0:00:01]} 36. Rd1 {[%emt 0:00:03]} Nd3 {[%emt 0:00:02]} 37. f3 {[%emt 0:00:06]} h5 {[%emt 0:00:01]} 38. Rd2 {[%emt 0:00:03]} e5 {[%emt 0:00:02]} 39. Rd1 {[%emt 0:00:03]} Kf5 {[%emt 0:00:05]} 40. Rd2 {[%emt 0:00:02]} (40. Rb1 $16) 40... gxf3 {[%emt 0:00:09]} (40... Kg6 $1 $11) 41. gxf3 $16 {[%emt 0:00:01]} e4 {[%emt 0:00:01]} 42. fxe4+ {[%emt 0:00:03]} Kxe4 {[%emt 0:00:00]} 43. Rg2 {[%emt 0:00:03]} Kxe3 {[%emt 0:00:04]} 44. Rg7 {[%emt 0:00:00]} (44. Rg6 $142 $1) 44... f5 {[%emt 0:00:04] [#]} 45. Re7+ {[%emt 0:00:02]} (45. Rg5 $1 $16) 45... Kf3 $11 {[%emt 0:00:01]} 46. Rh7 {[%emt 0:00:03]} Nf4 {[%emt 0:00:01]} 47. h4 {[%emt 0:00:02]} Kg4 {[%emt 0:00:07]} 48. Rg7+ {[%emt 0:00:00]} Kf3 $1 {[%emt 0:00:02]} 49. Kh2 {[%emt 0:00:03]} Ne6 {[%emt 0:00:02]} (49... Nd3 $14) 50. Rh7 {[%emt 0:00:03]} Kg4 {[%emt 0:00:01]} 51. Rh8 {[%emt 0:00:02]} f4 {[%emt 0:00:01]} (51... Nd4 $11 {remains equal.}) 52. Kg2 {[%emt 0:00:01]} (52. Rg8+ $16 Kf3 53. Rg6) 52... Bd5+ {[%emt 0:00:08]} 53. Kf2 {[%emt 0:00:01]} Kxh4 {[%emt 0:00:01]} 54. Rg8 {[%emt 0:00:02]} Kh3 {[%emt 0:00:02]} (54... Nc5 $5 55. Bd8+ Kh3 $16) 55. Bd8 {[%emt 0:00:03]} Bc4 {[%emt 0:00:01] [#]} 56. Rg6 $2 {[%emt 0:00:03][%mdl 8192]} (56. Be7 $1 $11) 56... Nxd8 $19 {[%emt 0:00:02]} 57. Rg5 {[%emt 0:00:02]} h4 {[%emt 0:00:01]} 58. Rg7 {[%emt 0:00:02]} Ne6 {[%emt 0:00:01]} 59. Rg6 {[%emt 0:00:01]} Nd4 {[%emt 0:00:01]} 60. Rg7 {[%emt 0:00:02]} Nc2 {[%emt 0:00:01]} 61. Kf3 {[%emt 0:00:02]} Nxb4 {[%emt 0:00:02]} 62. Kxf4 {[%emt 0:00:00]} Nd3+ {[%emt 0:00:01]} 63. Kg5 {[%emt 0:00:02]} Ne5 {[%emt 0:00:02]} 64. Rh7 {[%emt 0:00:02]} Kg3 {[%emt 0:00:01]} 65. Kf5 {[%emt 0:00:01]} Nf3 {[%emt 0:00:00]} 66. Rg7+ {[%emt 0:00:01]} Kf2 {[%emt 0:00:01]} 67. Kg4 {[%emt 0:00:01]} h3 {[%emt 0:00:03]} 68. Rh7 {[%emt 0:00:04]} h2 {[%emt 0:00:01]} 0-1

[Event "Vugar Gashimov Memorial Blitz 2024"]
[Site "Shusha"]
[Date "2024.09.28"]
[Round "10.1"]
[White "Mamedyarov, Shakhriyar"]
[Black "Artemiev, Vladislav"]
[Result "0-1"]
[ECO "D36"]
[WhiteElo "2733"]
[BlackElo "2701"]
[Annotator "TA"]
[PlyCount "100"]
[EventDate "2024.09.28"]
[EventType "tourn"]
[EventCountry "AZE"]
[SourceTitle "playchess.com"]
[Source "ChessBase"]
[SourceQuality "1"]
[TimeControl "180+2"]

{[%evp 40,100,188,216,191,193,188,145,225,160,177,44,160,171,375,56,319,298,581,312,285,235,211,0,0,0,0,0,0,0,318,322,315,331,327,275,293,0,435,0,0,0,0,0,0,0,412,22,16,0,0,-647,-632,-587,-608,-608,-595,-935,-929,-1006,-989,-1018,-884]} 1. d4 {[%emt 0:00:00]} Nf6 {[%emt 0:00:02]} 2. c4 {[%emt 0:00:01]} e6 {[%emt 0:00:00]} 3. Nc3 {[%emt 0:00:05]} d5 {[%emt 0:00:04]} 4. cxd5 {[%emt 0:00:01]} exd5 {[%emt 0:00:02]} 5. Bg5 {[%emt 0:00:01]} c6 {[%emt 0:00:00]} 6. e3 {[%emt 0:00:01]} h6 {[%emt 0:00:02]} 7. Bh4 {[%emt 0:00:01]} Be7 {[%emt 0:00:01]} 8. Bd3 {[%emt 0:00:01]} O-O {[%emt 0:00:02]} 9. Qc2 {[%emt 0:00:05] 9.Bg3 is the recent fashion.} a5 {[%emt 0:00:04]} 10. Nf3 {[%emt 0:00:04] D36: Queen's Gambit Declined: Exchange Variation: Main line (5 Bg5 c6 6 Qc2).} Re8 {[%emt 0:00:09]} 11. O-O {[%emt 0:00:14]} Na6 {[%emt 0:00:02]} 12. a3 {[%emt 0:00:02]} Nc7 {[%emt 0:00:02]} 13. Ne5 {[%emt 0:00:04]} Ne6 {[%emt 0:00:18]} 14. Rad1 {[%emt 0:00:27]} Nf8 {[%emt 0:00:18]} 15. f4 $146 {[%emt 0:00:33]} ({Predecessor:} 15. h3 Be6 16. Na4 N6d7 17. Bxe7 Qxe7 18. Nxd7 Nxd7 19. Rfe1 Qd6 20. Rc1 Rf8 21. Qd2 {1-0 Gerard,N (2244)-Le Franc,Y (1964) Avoine op 30th 2015 (8)}) 15... Ng4 {[%emt 0:00:01]} 16. Bxe7 {[%emt 0:00:03]} Qxe7 {[%emt 0:00:16]} 17. Qe2 {[%emt 0:00:01]} Nf6 {[%emt 0:00:07]} 18. Rde1 {[%emt 0:00:06]} c5 {[%emt 0:00:05]} 19. g4 {[%emt 0:00:14]} Be6 {[%emt 0:01:11]} 20. Qg2 {[%emt 0:00:04]} cxd4 {[%emt 0:00:07]} 21. exd4 {[%emt 0:00:01]} Qd8 {[%emt 0:00:19]} 22. f5 {[%emt 0:00:29]} Bd7 {[%emt 0:00:02]} 23. h4 {[%emt 0:00:02]} (23. Nxd5 Bc6 24. Nxf6+ Qxf6 $11) 23... N6h7 {[%emt 0:00:21]} (23... Qb6 $16 24. Qf2 (24. Nxd5 $2 Qxd4+ 25. Qf2 Qxf2+ 26. Kxf2 Rxe5 $19) 24... N8h7) 24. Qxd5 {[%emt 0:00:32]} Qxh4 {[%emt 0:00:01]} 25. Qxf7+ {[%emt 0:00:04]} Kh8 {[%emt 0:00:00]} 26. Re3 {[%emt 0:00:05]} Bc6 $2 {[%emt 0:00:09] [#]} (26... Re7 27. Qh5 Qxh5 28. gxh5 Nf6) 27. Bc4 $2 {[%emt 0:00:13]} ({White has to play} 27. f6 $1 $18 {[%csl Gf6][%cal Rf7g7]} Qh1+ 28. Kf2 Qh4+ 29. Ke2 Nxf6 30. Qxf8+ Rxf8 31. Ng6+ Kg8 32. Nxh4 Nxg4 33. Rxf8+ Rxf8 34. Re7) 27... Qh1+ $2 {[%emt 0:00:06]} (27... Nf6 $1 $14) 28. Kf2 $18 {[%emt 0:00:01]} Qh2+ {[%emt 0:00:02]} 29. Ke1 {[%emt 0:00:01]} Nf6 {[%emt 0:00:02]} 30. g5 {[%emt 0:00:13]} Qh4+ {[%emt 0:00:03] [#]} 31. Ke2 $2 {[%emt 0:00:01]} ({Better is} 31. Kd1 $1 $18 Qxg5 32. Ree1) 31... Qxg5 $11 {[%emt 0:00:01]} 32. d5 {[%emt 0:00:04]} Rxe5 {[%emt 0:00:03]} 33. Rxe5 {[%emt 0:00:02]} Qg4+ $1 {[%emt 0:00:01]} (33... Qg2+ $6 34. Kd1 $16) 34. Kd3 {[%emt 0:00:03]} N8d7 $2 {[%emt 0:00:04][%mdl 8192]} (34... b5 $11 {and Black is okay.} 35. dxc6 (35. Bxb5 $2 Bxb5+ 36. Nxb5 Qh3+ 37. Kc2 Qxf1 $19) (35. Nxb5 N8d7 $11) 35... bxc4+ 36. Qxc4 Rd8+ 37. Rd5 (37. Nd5 Qg3+ 38. Kd4 Qg4+ 39. Kc3 Qg3+ 40. Kd4 Qh4+ 41. Kd3 Qg3+ 42. Kd4 $11) 37... Qg2 38. Rxd8 Qxf1+ 39. Kd4 Qg1+ 40. Ke5 Qg3+ 41. Qf4 (41. Kd4 Qf2+ 42. Ke5 Qg3+ 43. Kd4 Qf2+ 44. Kd3 Qf1+ 45. Kd4 Qg1+ 46. Kd3 Qf1+ $11) 41... Ng4+ 42. Ke4 Nf6+ 43. Ke5 Ng4+ 44. Ke4 Nf6+ 45. Ke5) 35. Re7 $18 {[%emt 0:00:10]} Nc5+ {[%emt 0:00:01]} 36. Kc2 {[%emt 0:00:00]} Ba4+ {[%emt 0:00:02]} 37. Kb1 {[%emt 0:00:07]} Rg8 {[%emt 0:00:02]} 38. Ba2 $2 {[%emt 0:00:00]} ({White should play} 38. d6 $18) 38... Qh3 $2 {[%emt 0:00:02][%mdl 8192]} (38... Be8 $11 39. Rxe8 Rxe8) 39. Rc1 $2 {[%emt 0:00:00]} ({White should try} 39. Rg1 $18 Qh2 (39... Qxf5+ $2 40. Ka1 $18) (39... Be8 $2 40. Rxe8 Qd3+ 41. Ka1 $18) 40. Ne2 (40. Rxg7 Qh1+)) 39... Qxf5+ {[%emt 0:00:02]} 40. Ka1 {[%emt 0:00:00]} Be8 {[%emt 0:00:02]} 41. Rxe8 $1 {[%emt 0:00:01]} Rxe8 {[%emt 0:00:00]} 42. d6 {[%emt 0:00:01]} (42. Rg1 $5 Qd7 $8 43. Qg6 $11 (43. Rxg7 Re1+ 44. Bb1 Qxf7 $11)) 42... Rd8 $2 {[%emt 0:00:05][%mdl 8192]} (42... Qd7 $11 {and Black has nothing to worry.}) 43. Qc7 $2 {[%emt 0:00:01]} ({Only move:} 43. Rg1 $18 {[%csl Gg1][%cal Rf7g7]} Rg8 (43... Rxd6 44. Qxg7#) (43... Rd7 44. Qf8+ Kh7 45. Bg8+ Nxg8 46. Qxf5+ Kh8 47. Qxc5 b5 48. Qc8 Rxd6 49. Qc7) 44. Qe7) 43... Rc8 $1 $11 {[%emt 0:00:01]} 44. Qe7 {[%emt 0:00:01]} (44. Rd1 {feels hotter.} Ng8 45. Rd5 Qf1+ 46. Rd1) 44... Qd7 {[%emt 0:00:01]} 45. Nd5 $2 {[%emt 0:00:08][%mdl 8192]} (45. Ne2 $11 Re8 46. Nf4) 45... Nb3+ $19 {[%emt 0:00:01]} 46. Bxb3 {[%emt 0:00:01]} Rxc1+ {[%emt 0:00:01]} 47. Ka2 {[%emt 0:00:07]} Qxe7 {[%emt 0:00:01]} 48. dxe7 {[%emt 0:00:00]} Re1 {[%emt 0:00:02]} 49. Nf4 {[%emt 0:00:00]} g5 {[%emt 0:00:10]} (49... Rxe7 50. Ng6+ Kh7 51. Nxe7 $16) 50. Ne6 {[%emt 0:00:00]} g4 {[%emt 0:00:00]} 0-1

[Event "Vugar Gashimov Memorial Blitz 2024"]
[Site "Shusha"]
[Date "2024.09.28"]
[Round "10.2"]
[White "Nepomniachtchi, Ian"]
[Black "Abdusattorov, Nodirbek"]
[Result "1/2-1/2"]
[ECO "B19"]
[WhiteElo "2755"]
[BlackElo "2766"]
[Annotator "TA"]
[PlyCount "139"]
[EventDate "2024.09.28"]
[EventType "tourn"]
[EventCountry "AZE"]
[SourceTitle "playchess.com"]
[Source "ChessBase"]
[SourceQuality "1"]
[TimeControl "180+2"]

{[%evp 58,138,278,244,289,303,306,292,307,308,329,335,295,325,357,348,327,202,210,195,202,195,188,194,197,185,188,189,196,196,196,196,196,195,194,189,196,196,196,196,334,334,334,334,375,350,289,173,173,173,173,173,173,31,35,8,8,8,8,8,8,8,8,8,8,8,8,8,77,8,8,8,8,8,8,8,8,8,8,8,8,8,8]} 1. e4 {[%emt 0:00:02]} c6 {[%emt 0:00:00]} 2. d4 {[%emt 0:00:00]} d5 {[%emt 0:00:01]} 3. Nc3 {[%emt 0:00:00]} dxe4 {[%emt 0:00:04]} 4. Nxe4 {[%emt 0:00:01]} Bf5 {[%emt 0:00:03]} 5. Ng3 {[%emt 0:00:01]} Bg6 {[%emt 0:00:00]} 6. c3 {[%emt 0:00:00]} Nd7 {[%emt 0:00:05]} 7. h4 {[%emt 0:00:03]} h6 {[%emt 0:00:03]} 8. Nf3 {[%emt 0:00:15]} e6 {[%emt 0:00:03]} 9. h5 {[%emt 0:00:04]} Bh7 {[%emt 0:00:00]} 10. Bd3 {[%emt 0:00:01]} Bxd3 {[%emt 0:00:02]} 11. Qxd3 {[%emt 0:00:00]} Ngf6 {[%emt 0:00:03]} 12. Bf4 {[%emt 0:00:06]} Qa5 {[%emt 0:00:10]} 13. Bd2 {[%emt 0:00:31] B19: Classical Caro-Kann: 4...Bf5 main line.} Bd6 {[%emt 0:00:10]} 14. c4 {[%emt 0:00:07]} Qa6 {[%emt 0:00:08]} 15. Ne2 {[%emt 0:00:12]} O-O-O $146 {[%emt 0:00:04]} ({Predecessor:} 15... c5 16. b3 Rd8 17. Qc2 O-O 18. Kf1 b5 19. Kg1 bxc4 20. Qxc4 Qxc4 21. bxc4 Nb6 {0-1 Vereggen,L (1872)-Kabos,T (2166) Enschede op-A U18 2009 (3)}) 16. O-O {[%emt 0:00:15]} e5 {[%emt 0:00:03]} 17. dxe5 {[%emt 0:00:05]} Bxe5 {[%emt 0:00:13]} 18. Nxe5 {[%emt 0:00:05]} Nxe5 {[%emt 0:00:01]} 19. Qf5+ {[%emt 0:00:00]} Nfd7 {[%emt 0:00:38]} 20. b3 {[%emt 0:00:03]} Qa3 {[%emt 0:00:05]} 21. Bc3 {[%emt 0:00:07]} Rhe8 {[%emt 0:00:03]} 22. Ng3 {[%emt 0:00:04]} Qe7 {[%emt 0:00:27]} 23. Rad1 {[%emt 0:00:05]} g6 {[%emt 0:00:04]} 24. Qh3 {[%emt 0:00:04]} Kb8 {[%emt 0:00:31]} 25. Rfe1 {[%emt 0:00:01]} Qg5 {[%emt 0:00:35]} 26. Ne4 {[%emt 0:00:01]} Qf4 {[%emt 0:00:01]} 27. Nd6 {[%emt 0:00:41]} Re6 {[%emt 0:00:06]} 28. Nxf7 {[%emt 0:00:08]} Qxf7 {[%emt 0:00:01]} 29. Bxe5+ {[%emt 0:00:03]} Kc8 {[%emt 0:00:01]} 30. Bh2 {[%emt 0:00:05]} Rde8 {[%emt 0:00:03]} 31. Rxe6 {[%emt 0:00:05]} Qxe6 {[%emt 0:00:01]} 32. Qxe6 {[%emt 0:00:01]} Rxe6 {[%emt 0:00:00]} 33. hxg6 {[%emt 0:00:01]} Rxg6 {[%emt 0:00:01]} 34. Rd6 {[%emt 0:00:02]} Rxd6 {[%emt 0:00:11]} 35. Bxd6 {[%emt 0:00:01]} Nf6 {[%emt 0:00:00]} 36. f3 {[%emt 0:00:01]} Kd7 {[%emt 0:00:01]} 37. Bf4 {[%emt 0:00:02]} h5 {[%emt 0:00:01]} 38. Kf2 {[%emt 0:00:00]} Ke6 {[%emt 0:00:01]} 39. Ke3 {[%emt 0:00:05]} Kf5 {[%emt 0:00:01]} 40. Bb8 {[%emt 0:00:02]} a6 {[%emt 0:00:00]} 41. Ba7 {[%emt 0:00:03]} Nd7 {[%emt 0:00:02]} 42. Bd4 {[%emt 0:00:01]} Nf8 {[%emt 0:00:01]} 43. Kf2 {[%emt 0:00:06]} Ne6 {[%emt 0:00:01]} 44. Be3 {[%emt 0:00:01]} Nf8 {[%emt 0:00:07]} 45. Kg3 {[%emt 0:00:02]} Ng6 {[%emt 0:00:00]} 46. Kh3 {[%emt 0:00:00]} b5 {[%emt 0:00:03]} 47. cxb5 {[%emt 0:00:07]} cxb5 {[%emt 0:00:00]} 48. Kg3 {[%emt 0:00:03]} Ne5 {[%emt 0:00:02]} (48... Ke5 {keeps fighting.} 49. Kh3 Kf6) 49. Kh4 $18 {[%emt 0:00:03]} Kg6 {[%emt 0:00:01]} 50. Bd2 {[%emt 0:00:06]} Nd3 {[%emt 0:00:06]} 51. g4 {[%emt 0:00:01]} hxg4 {[%emt 0:00:04]} 52. fxg4 {[%emt 0:00:03]} (52. Kxg4 $142 {aiming for f4.} Nf2+ 53. Kf4) 52... Nc5 {[%emt 0:00:02]} 53. Kh3 {[%emt 0:00:07]} Ne4 {[%emt 0:00:00]} 54. Ba5 {[%emt 0:00:06]} Kg5 {[%emt 0:00:04] [#]} 55. Bd8+ {[%emt 0:00:01]} (55. Bb6 $1 $18) 55... Kg6 $1 $14 {[%emt 0:00:01]} 56. Kg2 {[%emt 0:00:04]} Nc3 {[%emt 0:00:02]} 57. a3 {[%emt 0:00:00]} Nb1 {[%emt 0:00:02]} 58. a4 {[%emt 0:00:01]} bxa4 $1 {[%emt 0:00:07]} 59. bxa4 {[%emt 0:00:01]} Nc3 {[%emt 0:00:01]} 60. a5 {[%emt 0:00:01]} Nb5 {[%emt 0:00:06]} 61. Kf3 {[%emt 0:00:01]} Kf7 {[%emt 0:00:01]} 62. Ke4 {[%emt 0:00:02]} Ke6 {[%emt 0:00:01]} 63. g5 {[%emt 0:00:04]} (63. Bg5 $16) 63... Nd6+ $11 {[%emt 0:00:00]} 64. Kf4 {[%emt 0:00:01]} Nf7 {[%emt 0:00:01]} 65. Bb6 {[%emt 0:00:03]} Nxg5 {[%emt 0:00:01]} 66. Kxg5 {[%emt 0:00:01]} Kd7 {[%emt 0:00:00]} 67. Kf5 {[%emt 0:00:01]} Kc6 {[%emt 0:00:00]} 68. Ke6 {[%emt 0:00:01]} Kb7 $1 {[%emt 0:00:01]} 69. Kd7 {[%emt 0:00:01]} Ka8 {[%emt 0:00:00]} 70. Kc8 {[%emt 0:00:00]} 1/2-1/2

[Event "Vugar Gashimov Memorial Blitz 2024"]
[Site "Shusha"]
[Date "2024.09.28"]
[Round "10.3"]
[White "Suleymanli, Aydin"]
[Black "Rapport, Richard"]
[Result "0-1"]
[ECO "B06"]
[WhiteElo "2632"]
[BlackElo "2715"]
[Annotator "TA"]
[PlyCount "110"]
[EventDate "2024.09.28"]
[EventType "tourn"]
[EventCountry "AZE"]
[SourceTitle "playchess.com"]
[Source "ChessBase"]
[SourceQuality "1"]
[TimeControl "180+2"]

{[%evp 52,110,62,64,65,0,0,-5,32,-33,-12,-113,78,60,72,66,71,59,125,0,58,71,211,197,116,106,215,239,513,331,393,361,572,519,613,594,850,171,182,185,185,185,165,-103,-100,-904,-910,-893,-904,-881,-878,-1239,-1201,-1100,-874,-1138,-1135,-1139,-1100,-1612,-1571]} 1. e4 {[%emt 0:00:01]} g6 {[%emt 0:00:06]} 2. d4 {[%emt 0:00:04]} Bg7 {[%emt 0:00:01]} 3. Nf3 {[%emt 0:00:03]} d6 {[%emt 0:00:01]} 4. h3 {[%emt 0:00:07]} a6 {[%emt 0:00:03]} 5. Bd3 {[%emt 0:00:06]} e6 {[%emt 0:00:03]} 6. O-O {[%emt 0:00:02] B06: Modern Defence.} Ne7 {[%emt 0:00:02]} 7. c3 {[%emt 0:00:02]} Nd7 {[%emt 0:00:03]} 8. Bf4 {[%emt 0:00:05]} h6 {[%emt 0:00:03]} 9. Bg3 $146 {[%emt 0:00:09]} ({Predecessor:} 9. Bh2 b6 10. Nbd2 Bb7 11. Re1 O-O 12. e5 d5 13. Rc1 c5 14. Nf1 c4 15. Bb1 {1-0 Antonova,N (1832)-Burke,P Titled Tuesday intern op 05th Jul Late blitz 2022 (5)}) 9... b6 {[%emt 0:00:02]} 10. Nbd2 {[%emt 0:00:01]} Bb7 {[%emt 0:00:00]} 11. a4 {[%emt 0:00:02]} O-O {[%emt 0:00:04]} 12. Re1 {[%emt 0:00:10]} e5 {[%emt 0:00:05]} 13. dxe5 {[%emt 0:00:08]} dxe5 {[%emt 0:00:03]} 14. Nc4 {[%emt 0:00:03]} Nc6 {[%emt 0:00:03]} 15. b4 {[%emt 0:00:01]} Qe7 {[%emt 0:00:05]} 16. Ne3 {[%emt 0:00:02]} Rae8 {[%emt 0:00:06]} 17. Bh4 {[%emt 0:00:06]} Nf6 {[%emt 0:00:09]} 18. Nd5 {[%emt 0:00:13]} Qd6 {[%emt 0:00:02]} 19. Bxf6 {[%emt 0:00:31]} Bxf6 {[%emt 0:00:01]} 20. Qe2 {[%emt 0:00:03]} Nb8 {[%emt 0:00:03]} 21. Ne3 {[%emt 0:00:05]} h5 {[%emt 0:00:12]} 22. Rad1 {[%emt 0:00:02]} Qe7 {[%emt 0:00:08]} 23. Qc2 {[%emt 0:00:19]} c6 {[%emt 0:00:05]} 24. Nc4 {[%emt 0:00:05]} Qc7 {[%emt 0:00:01]} 25. Bf1 {[%emt 0:00:12]} Re6 {[%emt 0:00:03]} 26. Rd2 {[%emt 0:00:06]} b5 {[%emt 0:00:02]} 27. Na5 {[%emt 0:00:03]} Bc8 {[%emt 0:00:02]} 28. Red1 {[%emt 0:00:03]} (28. c4 $14) 28... Be7 $11 {[%emt 0:00:10]} 29. Qb3 {[%emt 0:00:24]} Rf6 {[%emt 0:00:05]} 30. c4 {[%emt 0:00:09]} (30. axb5 $14 axb5 31. Qc2) 30... bxa4 $1 $15 {[%emt 0:00:01]} 31. Qc3 {[%emt 0:00:04]} (31. Qxa4 $11 {was the only way to keep the balance.} c5 32. b5) 31... Rf4 $2 {[%emt 0:00:06]} (31... c5 $17 32. bxc5 Qxc5) 32. c5 $16 {[%emt 0:00:15]} (32. Nxe5 $2 c5 33. b5 Bf6 $19) 32... Rxe4 {[%emt 0:00:05]} 33. Nc4 {[%emt 0:00:01]} Be6 {[%emt 0:00:06]} 34. Nd6 {[%emt 0:00:02]} (34. Ncxe5 Bf6 35. Rd6 Nd7 $19) (34. Nfxe5 a5 35. bxa5 Bxc5 $15) 34... Bxd6 {[%emt 0:00:09]} (34... Rf4 $14) 35. cxd6 {[%emt 0:00:02]} ({White has to play} 35. Rxd6 $16 Bb3 36. Ng5) 35... Qb6 {[%emt 0:00:10]} (35... Qd8 $11) 36. Ng5 $14 {[%emt 0:00:03]} (36. Nxe5 Bd5 $11) 36... Rf4 {[%emt 0:00:26]} (36... Rd4 $16) 37. Nxe6 $18 {[%emt 0:00:12]} (37. Qxe5 Rf5 38. Qg3 Bd5 $17) 37... fxe6 {[%emt 0:00:01]} 38. Qg3 {[%emt 0:00:04]} Kh7 {[%emt 0:00:14]} (38... Kf7 $16) 39. d7 $18 {[%emt 0:00:01]} h4 $2 {[%emt 0:00:02]} (39... Nxd7 40. Rxd7+ Kh6) 40. Qe3 {[%emt 0:00:02]} (40. d8=B Rxd8 41. Qg5 Rxd2 42. Rxd2 Qxb4 $11) 40... Qd8 {[%emt 0:00:02]} 41. Qxe5 {[%emt 0:00:02]} a3 {[%emt 0:00:07]} (41... R8f6 $142 42. Bd3 Kh6) 42. Bd3 {[%emt 0:00:03]} R4f6 {[%emt 0:00:01]} 43. Bb1 {[%emt 0:00:03]} R8f7 {[%emt 0:00:01] [#]} 44. Qxb8 $2 {[%emt 0:00:04]} (44. Qg5 $3 {[%cal Ob1g6][%mdl 512] Bxg6+! would kill now.} Qxd7 45. Qxh4+ Kg7 46. Rxd7 Nxd7 47. Kh2) 44... Qxb8 $18 {[%emt 0:00:01]} 45. d8=Q {[%emt 0:00:02]} (45. d8=B $2 Rf4 46. Ba5 Qa7 $19) 45... Qxd8 {[%emt 0:00:01]} 46. Rxd8 {[%emt 0:00:00]} Rxf2 {[%emt 0:00:01] [#]} 47. Ra8 $2 {[%emt 0:00:04]} (47. R8d7 $1 $18) 47... a2 $17 {[%emt 0:00:02]} 48. Be4 $2 {[%emt 0:00:02][%mdl 8192]} (48. Rxa6 $2 Rf1+ (48... axb1=R 49. Rxb1 Rc2 50. Ra5 $17) 49. Kh2 axb1=Q $19 (49... axb1=R $2 50. Rxb1 Rxb1 51. Ra2 $19)) (48. Bd3 $17) 48... Rf1+ $19 {[%emt 0:00:01]} 49. Rxf1 {[%emt 0:00:03]} Rxf1+ {[%emt 0:00:01]} 50. Kxf1 {[%emt 0:00:01]} a1=Q+ {[%emt 0:00:02]} (50... a1=B $2 {loses.} 51. Rxa6 (51. Bxc6 Bc3 $18) 51... Bc3 52. Ra4 $18 (52. Bxc6 Bxb4 53. Be4 Kg8 $18)) 51. Kf2 {[%emt 0:00:01]} Qd4+ {[%emt 0:00:06]} 52. Kf3 {[%emt 0:00:01]} Qc3+ {[%emt 0:00:01]} 53. Kf2 {[%emt 0:00:02]} Qxb4 {[%emt 0:00:03]} 54. Bf3 {[%emt 0:00:01]} a5 {[%emt 0:00:04]} 55. Ra6 {[%emt 0:00:04]} a4 {[%emt 0:00:03]} 0-1